Workbook

Sheet Sheet1
B2: Unit Type | C2: Details | D2: Tenant | E2: Approx SQFT | F2: Monthly Rental Rate | G2: Projected Rental Rate | H2: $/SQFT | I2: Lease Exp. | J2: Annual Income | K2: Year 2 | L2: Year 3 | M2: Year 4 | N2: Year 5
B3: Lower Level Commercial Unit | C3: Warehouse & Office | D3: Patrick Baker & Sons | E3: 7261 | F3: 4880 | G3: N/A | H3: =J3/E3 -> 8.06500482 | I3: 2026-12-31 | J3: =F3*12 -> 58560 | K3: =J3*1.03 -> 60316.8 | L3: =K3*1.03 -> 62126.304 | M3: 63990.09312 | N3: 65909.79591
B4: Main Floor Commercial - Right | C4: Retail/Office | D4: Advest Investment Group | E4: 1825 | F4: 5000 | G4: N/A | H4: =J4/E4 -> 32.87671233 | I4: 2026-12-31 | J4: =F4*12 -> 60000 | K4: =J4*1.03 -> 61800 | L4: 63654 | M4: 65563.62 | N4: 67530.5286
B5: Main Floor Commercial - Left | C5: Retail/Office | D5: Vacant | E5: 3671 | F5: N/A | G5: 5500 | H5: =J5/E5 -> 17.97875238 | I5: N/A | J5: =G5*12 -> 66000 | K5: =J5*1.03 -> 67980 | L5: 70019.4 | M5: 72119.982 | N5: 74283.58146
B6: Upper Floor Commercial | C6: Office | D6: Vacant | E6: 900 | F6: N/A | G6: 1500 | H6: =J6/E6 -> 20 | I6: N/A | J6: =G6*12 -> 18000 | K6: 18540 | L6: 19096.2 | M6: 19669.086 | N6: 20259.15858
E7: =SUM(E3:E6) -> 13657
B8: Monthly Gross Income | J8: =SUM(J3:J6)/12 -> 16880 | K8: =SUM(K3:K6)/12 -> 17386.4 | L8: 17907.992 | M8: 18445.23176 | N8: 18998.58871
B9: Annual Gross Income | J9: =J8*12 -> 202560 | K9: =K8*12 -> 208636.8 | L9: 214895.904 | M9: 221342.7811 | N9: 227983.0646
B10: Expense | C10: Projected Monthy | D10: Projected Annually
B11: Taxes | C11: =D11/12 -> 1492.666667 | D11: 17912
B12: Insurance | C12: =D12/12 -> 501.8333333 | D12: 6022
B13: Electric | C13: 662.8333333 | D13: 7954 | J13: Annual Income
B14: Heating Oil | C14: 737.6666667 | D14: 8852 | H14: Monthly Operating Expense | J14: =E18/12 -> 3939.166667
B15: Lawncare | C15: 241.6666667 | D15: 2900 | H15: Monthly Net Operating Income | J15: =J8-J14 -> 12940.83333
B16: Snow Removal | C16: 240.5 | D16: 2886 | H16: Annual Operating Expense | J16: =J14*12 -> 47270
B17: Town Water | C17: 26.58333333 | D17: 319 | E17: Total Annual Expenses | H17: Annual Net Operating Income | J17: =J9-J16 -> 155290
B18: Town Sewer | C18: 35.41666667 | D18: 425 | E18: =SUM(D11:D18) -> 47270 | H18: Capitalization Rate % | J18: =J17/1800000 -> 0.08627222222
